[Event "CZE-ch U14 Open 2023"]
[Site "Teplice"]
[Date "2023.03.13"]
[Round "3.9"]
[White "Tichy, Tomas"]
[Black "Veverka, Vladimir"]
[Result "0-1"]
[ECO "C05"]
[WhiteElo "1810"]
[BlackElo "1735"]
[Annotator "NA RC COMBH"]
[PlyCount "70"]
[EventDate "2023.03.09"]
[EventType "swiss"]
[EventCountry "CZE"]
[SourceTitle "playchess.com"]
[Source "ChessBase"]
[SourceQuality "1"]
[TimeControl "40/5400+30:1800+30"]

1. e4 {[%emt 0:00:20]} e6 {[%emt 0:00:37]} 2. d4 {[%emt 0:00:10]} d5 {[%emt 0:00:06]} 3. Nd2 {[%emt 0:00:05]} Nf6 {[%emt 0:00:08]} 4. e5 {[%emt 0:00:11]} Nfd7 {[%emt 0:00:06]} 5. Bd3 {[%emt 0:00:13]} c5 {[%emt 0:00:39]} 6. c3 {[%emt 0:00:09]} Nc6 {[%emt 0:00:34]} 7. Ne2 {[%emt 0:00:12]} Qb6 {[%emt 0:00:15]} 8. Nf3 {[%emt 0:02:58]} cxd4 {[%emt 0:00:59]} 9. cxd4 {[%emt 0:01:50]} f6 {[%emt 0:02:04]} 10. exf6 {[%emt 0:01:03]} Nxf6 {[%emt 0:00:11]} 11. O-O {[%emt 0:02:02]} Bd6 {[%emt 0:01:23]} 12. a3 {[%emt 0:12:01]} Bd7 {[%emt 0:02:03]} 13. b4 {[%emt 0:04:56]} O-O {[%emt 0:02:35]} 14. Bb2 {[%emt 0:03:02]} Qd8 {[%emt 0:02:40]} 15. Ng3 {[%emt 0:05:26]} Ng4 {[%emt 0:07:41]} 16. Re1 {[%emt 0:08:46]} Qf6 $14 {[%emt 0:24:58]} 17. Bc2 {[%emt 0:14:05]} h5 {[%emt 0:15:19]} 18. Qd3 {[%emt 0:15:06]} Kf7 {[%emt 0:05:27]} 19. Bc1 {[%emt 0:03:28]} h4 {[%emt 0:08:26]} 20. Bg5 {[%emt 0:05:55]} hxg3 {[%emt 0:01:56]} 21. Bxf6 {[%emt 0:00:37]} gxf2+ {[%emt 0:00:29]} 22. Kf1 {[%emt 0:00:27]} fxe1=Q+ {[%emt 0:00:38]} 23. Rxe1 {[%emt 0:00:18]} Nxf6 {[%emt 0:00:31]} 24. Qg6+ {[%emt 0:01:36]} Kg8 {[%emt 0:01:25]} 25. Kg1 {[%emt 0:02:08]} Bf4 {[%emt 0:08:15]} 26. b5 {[%emt 0:05:52]} Ne7 {[%emt 0:01:38]} 27. Qd3 {[%emt 0:00:15]} Rac8 {[%emt 0:01:02]} 28. Ne5 {[%emt 0:02:33]} Bxe5 {[%emt 0:01:11]} 29. dxe5 {[%emt 0:02:08]} Ne4 {[%emt 0:01:46]} 30. Rxe4 {[%emt 0:03:41]} dxe4 {[%emt 0:01:22]} 31. Qxe4 {[%emt 0:01:05]} Nf5 {[%emt 0:01:26]} 32. g4 {[%emt 0:01:14]} Ne7 {[%emt 0:02:40]} 33. Qxb7 {[%emt 0:02:01]} Bxb5 {[%emt 0:02:09]} 34. Bb3 {[%emt 0:00:32]} Rc1+ {[%emt 0:00:49]} 35. Kg2 {[%emt 0:00:05]} Bc6+ {[%emt 0:00:08]} 0-1

[Event "CZE-ch U14 Open 2023"]
[Site "Teplice"]
[Date "2023.03.13"]
[Round "3.10"]
[White "Hobza, Richard"]
[Black "Babula, Matej"]
[Result "0-1"]
[ECO "A05"]
[WhiteElo "1702"]
[BlackElo "1796"]
[Annotator "NA RC COMBH"]
[PlyCount "92"]
[EventDate "2023.03.09"]
[EventType "swiss"]
[EventCountry "CZE"]
[SourceTitle "playchess.com"]
[Source "ChessBase"]
[SourceQuality "1"]
[TimeControl "40/5400+30:1800+30"]

1. Nf3 {[%emt 0:00:04]} Nf6 {[%emt 0:00:09]} 2. g3 {[%emt 0:00:06]} d5 {[%emt 0:00:33]} 3. Bg2 {[%emt 0:00:08]} Nc6 {[%emt 0:01:37]} 4. d4 {[%emt 0:01:26]} Bf5 {[%emt 0:00:22]} 5. O-O {[%emt 0:01:10]} e6 {[%emt 0:01:29]} 6. c3 {[%emt 0:01:23]} Bd6 {[%emt 0:01:39]} 7. Nbd2 {[%emt 0:08:19]} h6 {[%emt 0:06:53]} 8. Re1 {[%emt 0:05:04]} O-O {[%emt 0:02:56]} 9. Nh4 {[%emt 0:07:32]} Bh7 {[%emt 0:01:01]} 10. e4 {[%emt 0:01:21]} dxe4 {[%emt 0:14:25]} 11. Nxe4 {[%emt 0:00:29]} Nxe4 {[%emt 0:02:05]} 12. Bxe4 {[%emt 0:00:11]} Bxe4 {[%emt 0:01:11]} 13. Rxe4 {[%emt 0:00:07]} Be7 {[%emt 0:12:22]} 14. Qh5 {[%emt 0:08:12]} Qd5 {[%emt 0:04:51]} 15. Qxd5 {[%emt 0:03:35]} exd5 {[%emt 0:00:03]} 16. Re1 {[%emt 0:00:43]} Bxh4 {[%emt 0:11:41]} 17. gxh4 {[%emt 0:00:07]} Rfe8 {[%emt 0:01:59]} 18. Bf4 {[%emt 0:01:03]} Rxe1+ {[%emt 0:00:11]} 19. Rxe1 {[%emt 0:00:05]} Rc8 {[%emt 0:00:06]} 20. Kf1 {[%emt 0:03:08]} Kf8 {[%emt 0:02:03]} 21. Ke2 {[%emt 0:01:12]} Ne7 {[%emt 0:04:12]} 22. Kd3 {[%emt 0:01:45]} h5 {[%emt 0:02:45]} 23. b3 {[%emt 0:01:33]} f6 {[%emt 0:04:11]} 24. a4 {[%emt 0:12:35]} Kf7 {[%emt 0:01:27]} 25. c4 {[%emt 0:08:59]} c6 {[%emt 0:01:27]} 26. c5 {[%emt 0:02:56]} Nf5 {[%emt 0:01:40]} 27. Bg3 {[%emt 0:01:48]} Re8 {[%emt 0:00:27]} 28. Rxe8 {[%emt 0:00:43]} Kxe8 {[%emt 0:00:02]} 29. b4 {[%emt 0:01:29]} a6 {[%emt 0:01:58]} 30. f4 {[%emt 0:02:11]} Kf7 {[%emt 0:01:02]} 31. Bf2 {[%emt 0:01:48]} Ke6 {[%emt 0:01:02]} 32. Kc3 {[%emt 0:03:24]} Kd7 {[%emt 0:08:17]} 33. Kd3 {[%emt 0:01:48]} Kc7 {[%emt 0:00:56]} 34. a5 {[%emt 0:02:46]} Kd7 {[%emt 0:00:11]} 35. Ke2 {[%emt 0:00:13]} Ke6 {[%emt 0:00:32]} 36. Kf3 {[%emt 0:00:23]} Ne7 {[%emt 0:00:47]} 37. Be1 {[%emt 0:01:15]} Kf5 {[%emt 0:01:08]} 38. Bf2 {[%emt 0:00:54]} Ng8 {[%emt 0:00:56]} 39. Be1 {[%emt 0:01:04]} Nh6 {[%emt 0:00:13]} 40. h3 {[%emt 0:00:20]} Nf7 {[%emt 0:00:22]} 41. Bd2 {[%emt 0:30:55]} Nd8 {[%emt 0:30:21]} 42. Bc1 {[%emt 0:07:38]} Ne6 {[%emt 0:00:19]} 43. Be3 {[%emt 0:00:36]} g6 {[%emt 0:00:44]} 44. Kg3 {[%emt 0:02:02]} Ke4 {[%emt 0:00:19]} 45. Bc1 {[%emt 0:00:14]} Nxd4 {[%emt 0:00:50]} 46. Bb2 {[%emt 0:00:39]} f5 {[%emt 0:01:49]} 0-1

[Event "CZE-ch U14 Open 2023"]
[Site "Teplice"]
[Date "2023.03.13"]
[Round "3.11"]
[White "Striz, Tadeas"]
[Black "Dusanek, Michal"]
[Result "1-0"]
[ECO "B83"]
[WhiteElo "1503"]
[BlackElo "1624"]
[Annotator "NA RC COMBH"]
[PlyCount "54"]
[EventDate "2023.03.09"]
[EventType "swiss"]
[EventCountry "CZE"]
[SourceTitle "playchess.com"]
[Source "ChessBase"]
[SourceQuality "1"]
[TimeControl "40/5400+30:1800+30"]

1. e4 {[%emt 0:00:06]} c5 {[%emt 0:00:25]} 2. Nf3 {[%emt 0:00:34]} d6 {[%emt 0:01:00]} 3. d4 {[%emt 0:00:07]} cxd4 {[%emt 0:00:13]} 4. Nxd4 {[%emt 0:00:02]} Nf6 {[%emt 0:00:18]} 5. Nc3 {[%emt 0:00:13]} Nc6 {[%emt 0:00:40]} 6. Be2 {[%emt 0:04:40]} e6 {[%emt 0:04:55]} 7. g4 {[%emt 0:02:19]} h6 {[%emt 0:05:01]} 8. h4 {[%emt 0:02:57]} Be7 {[%emt 0:21:58]} 9. Be3 {[%emt 0:13:41]} Nxd4 {[%emt 0:06:38]} 10. Bxd4 {[%emt 0:09:14]} e5 {[%emt 0:00:38]} 11. Be3 {[%emt 0:00:01]} Be6 {[%emt 0:04:39]} 12. f4 {[%emt 0:03:18]} a6 {[%emt 0:14:05]} 13. f5 {[%emt 0:07:17]} Bd7 {[%emt 0:01:37]} 14. Qd2 {[%emt 0:02:10]} Bc6 {[%emt 0:01:47]} 15. Bf3 {[%emt 0:00:19]} Qc7 {[%emt 0:02:06]} 16. O-O-O {[%emt 0:01:27]} Rc8 {[%emt 0:15:11]} 17. g5 {[%emt 0:06:53]} Ng8 {[%emt 0:00:11]} 18. Qf2 {[%emt 0:10:42]} b5 {[%emt 0:02:37]} 19. Bg4 {[%emt 0:11:45]} f6 {[%emt 0:04:36]} 20. Bh5+ {[%emt 0:02:33]} Kf8 {[%emt 0:01:35]} 21. gxh6 {[%emt 0:00:15]} Nxh6 {[%emt 0:00:24]} 22. Rdg1 {[%emt 0:01:31]} Bxe4 {[%emt 0:05:26]} 23. Nxe4 {[%emt 0:02:04]} Nxf5 {[%emt 0:00:06]} 24. Bg4 {[%emt 0:00:20]} g6 {[%emt 0:05:49]} 25. h5 {[%emt 0:00:02]} Nxe3 {[%emt 0:00:30]} 26. Bxc8 {[%emt 0:00:01]} Nc4 {[%emt 0:00:34]} 27. Be6 {[%emt 0:01:08]} g5 {[%emt 0:00:00]} 1-0

[Event "CZE-ch U14 Open 2023"]
[Site "Teplice"]
[Date "2023.03.13"]
[Round "3.12"]
[White "Srba, Daniel"]
[Black "Macosek, Alex"]
[Result "1-0"]
[ECO "B06"]
[WhiteElo "1509"]
[BlackElo "1466"]
[Annotator "NA RC COMBH"]
[PlyCount "97"]
[EventDate "2023.03.09"]
[EventType "swiss"]
[EventCountry "CZE"]
[SourceTitle "playchess.com"]
[Source "ChessBase"]
[SourceQuality "1"]
[TimeControl "40/5400+30:1800+30"]

1. e4 {[%emt 0:00:07]} g6 {[%emt 0:00:40]} 2. d4 {[%emt 0:00:14]} Bg7 {[%emt 0:01:03]} 3. Nc3 {[%emt 0:00:57]} d6 {[%emt 0:00:35]} 4. Be3 {[%emt 0:01:22]} a6 {[%emt 0:01:29]} 5. Qd2 {[%emt 0:02:41]} b5 {[%emt 0:00:30]} 6. f3 {[%emt 0:02:52]} Bb7 {[%emt 0:00:32]} 7. a3 {[%emt 0:02:33]} Nd7 {[%emt 0:00:27]} 8. Nge2 {[%emt 0:06:49]} c5 {[%emt 0:07:57]} 9. dxc5 {[%emt 0:03:56]} Nxc5 {[%emt 0:00:20]} 10. Bxc5 {[%emt 0:02:20]} dxc5 {[%emt 0:00:13]} 11. O-O-O {[%emt 0:02:18]} Bh6 {[%emt 0:01:56]} 12. f4 {[%emt 0:02:13]} Qxd2+ {[%emt 0:00:42]} 13. Rxd2 {[%emt 0:00:33]} e5 {[%emt 0:02:52]} 14. g3 {[%emt 0:05:03]} f5 {[%emt 0:01:07]} 15. Bg2 {[%emt 0:01:55]} Nf6 {[%emt 0:00:57]} 16. Nd5 {[%emt 0:02:03]} Nxd5 {[%emt 0:02:10]} 17. exd5 {[%emt 0:01:12]} O-O-O {[%emt 0:00:42]} 18. b3 {[%emt 0:07:16]} Rhe8 {[%emt 0:01:38]} 19. c4 {[%emt 0:04:14]} bxc4 {[%emt 0:00:39]} 20. bxc4 {[%emt 0:00:05]} exf4 {[%emt 0:00:14]} 21. Nxf4 {[%emt 0:04:42]} Re3 {[%emt 0:01:08]} 22. Kb2 {[%emt 0:01:56]} Bg7+ {[%emt 0:02:21]} 23. Ka2 {[%emt 0:02:21]} Rd6 {[%emt 0:08:41]} 24. Rc1 {[%emt 0:02:24]} Rb6 {[%emt 0:02:48]} 25. Ne6 {[%emt 0:07:07]} Bd4 {[%emt 0:02:42]} 26. Nxd4 {[%emt 0:01:28]} cxd4 {[%emt 0:00:18]} 27. c5 {[%emt 0:05:41]} Rbb3 {[%emt 0:00:48]} 28. c6 {[%emt 0:02:15]} Ba8 {[%emt 0:00:51]} 29. Rxd4 {[%emt 0:07:09]} Rxa3+ {[%emt 0:00:32]} 30. Kb2 {[%emt 0:00:26]} Ra5 {[%emt 0:01:07]} 31. Rc2 {[%emt 0:02:19]} Rb5+ {[%emt 0:01:32]} 32. Kc1 {[%emt 0:00:16]} Re1+ {[%emt 0:01:42]} 33. Kd2 {[%emt 0:00:26]} Rbb1 {[%emt 0:00:34]} 34. Bf3 {[%emt 0:04:08]} Rf1 {[%emt 0:00:53]} 35. Rd3 {[%emt 0:00:02]} Rf2+ {[%emt 0:03:13]} 36. Kc3 {[%emt 0:00:02]} Rxc2+ {[%emt 0:00:20]} 37. Kxc2 {[%emt 0:00:03]} Rb5 {[%emt 0:00:24]} 38. Ra3 {[%emt 0:01:46]} a5 {[%emt 0:00:25]} 39. Kc3 {[%emt 0:00:33]} Kc7 {[%emt 0:00:56]} 40. Kc4 {[%emt 0:00:59]} Kb6 {[%emt 0:00:34]} 41. Rb3 {[%emt 0:31:01]} Rxb3 {[%emt 0:30:12]} 42. Kxb3 {[%emt 0:00:04]} Kc5 {[%emt 0:00:31]} 43. Ka4 {[%emt 0:02:33]} Kb6 {[%emt 0:00:47]} 44. Bg2 {[%emt 0:01:35]} Ka6 {[%emt 0:01:31]} 45. d6 {[%emt 0:00:47]} Kb6 {[%emt 0:00:54]} 46. c7 {[%emt 0:00:20]} Bb7 {[%emt 0:00:16]} 47. Bxb7 {[%emt 0:00:35]} Kxb7 {[%emt 0:00:06]} 48. Kxa5 {[%emt 0:00:03]} g5 {[%emt 0:00:15]} 49. Kb4 {[%emt 0:00:26]} 1-0

[Event "CZE-ch U14 Open 2023"]
[Site "Teplice"]
[Date "2023.03.13"]
[Round "4.1"]
[White "Martirosyan, David"]
[Black "Juhanak, Daniel"]
[Result "0-1"]
[ECO "D26"]
[WhiteElo "1975"]
[BlackElo "1952"]
[Annotator "TA"]
[PlyCount "116"]
[EventDate "2023.03.09"]
[EventType "swiss"]
[EventCountry "CZE"]
[SourceTitle "playchess.com"]
[Source "ChessBase"]
[SourceQuality "1"]
[TimeControl "40/5400+30:1800+30"]

{[%evp 20,116,0,0,0,-4,3,-5,-22,-25,-9,-18,-9,-37,-37,-43,-43,-46,-35,-45,-33,-35,-37,-62,-69,-61,-56,-64,-55,-69,-69,-87,-88,-100,-92,-87,-91,-85,-84,-97,-89,-102,-102,-102,-93,-118,-117,-118,-119,-133,-133,-134,-120,-146,-89,-147,-145,-159,-152,-210,-215,-210,-214,-203,-202,-318,-293,-335,-324,-337,-221,-294,0,-339,-335,-268,-194,-621,-609,-617,-608,-603,-596,-557,-537,-29967,-12375,-4906,-2797,-29978,-29979,-29979,-29981,-29980,-29981,-29982,-29983,-29990,-29991]} 1. d4 {[%emt 0:00:11]} d5 {[%emt 0:00:01]} 2. c4 {[%emt 0:00:12]} dxc4 {[%emt 0:00:17]} 3. e3 {[%emt 0:00:13]} Nf6 {[%emt 0:00:42]} 4. Bxc4 {[%emt 0:00:26]} e6 {[%emt 0:00:29]} 5. Nf3 {[%emt 0:00:30]} c5 {[%emt 0:00:12]} 6. Nc3 {[%emt 0:01:32]} a6 {[%emt 0:03:06]} 7. a4 {[%emt 0:01:36]} Nc6 {[%emt 0:02:17]} 8. O-O {[%emt 0:01:28]} cxd4 {[%emt 0:00:52]} 9. exd4 {[%emt 0:00:13]} Be7 {[%emt 0:01:33]} 10. Re1 {[%emt 0:03:53]} O-O {[%emt 0:01:45]} 11. Bf4 {[%emt 0:03:37] is now more promising than 11.Bg5.} Qb6 {[%emt 0:07:10] D26: Queen's Gambit Accepted: 4 e3 e6 5 Bxc5 c5 sidelines.} 12. Qb3 {[%emt 0:07:49] [#]} Bb4 $146 {[%emt 0:04:59]} ({Predecessor:} 12... Qxb3 13. Bxb3 Bd7 14. Rad1 Rac8 15. d5 exd5 16. Nxd5 Nxd5 17. Bxd5 Bf6 18. b3 Bf5 19. h3 {½-½ Babula,V (2559)-Nguyen,T (2577) EU-Cup Online Gr-C rapid 2021 (7.1)}) 13. Rad1 {[%emt 0:03:27]} Na5 {[%emt 0:01:11] The position is equal.} 14. Qa2 {[%emt 0:00:19]} Nxc4 {[%emt 0:00:48]} 15. Qxc4 {[%emt 0:00:08]} Bd7 {[%emt 0:03:14]} 16. Qb3 {[%emt 0:06:40]} Qa5 {[%emt 0:08:23]} 17. Bc7 {[%emt 0:19:16][%mdl 64] Deflection} Qxc7 {[%emt 0:02:36]} 18. Qxb4 {[%emt 0:00:07]} Bc6 {[%emt 0:05:50]} 19. Ne5 {[%emt 0:01:37]} Rfd8 {[%emt 0:05:23]} 20. a5 {[%emt 0:02:48]} Nd5 {[%emt 0:03:04]} 21. Nxd5 Rxd5 {[%emt 0:02:48]} 22. Rc1 {[%emt 0:05:13]} Rad8 {[%emt 0:03:12]} (22... Qxa5 {simplifies} 23. Nxc6 bxc6 24. Qxa5 Rxa5 25. Rxc6 g6) 23. Rc4 {[%emt 0:03:42]} h6 {[%emt 0:03:22]} 24. Nxc6 {[%emt 0:05:03]} bxc6 {[%emt 0:00:16]} 25. Qc3 {[%emt 0:00:08]} Qxa5 {[%emt 0:01:55]} 26. Rxc6 {[%emt 0:00:27]} Qa4 {[%emt 0:02:44]} 27. Rc4 {[%emt 0:02:34]} Qd7 {[%emt 0:01:23] Black is more active.} 28. Rc7 {[%emt 0:05:23]} Qb5 {[%emt 0:05:44]} 29. Rc5 {[%emt 0:06:53]} Qb7 {[%emt 0:01:19]} 30. Rc7 {[%emt 0:00:18]} Qb6 {[%emt 0:03:52]} 31. Rc6 {[%emt 0:03:49]} Qa7 {[%emt 0:01:42]} 32. Qc4 {[%emt 0:05:18]} a5 {[%emt 0:02:19]} 33. Rc8 {[%emt 0:04:41]} Qxd4 {[%emt 0:03:29]} 34. Qxd4 {[%emt 0:00:52]} Rxd4 {[%emt 0:00:05]} 35. Rxd8+ {[%emt 0:00:04]} Rxd8 $17 {[%emt 0:00:02][%mdl 4096] Endgame KR-KR} 36. g3 {[%emt 0:00:07]} Kf8 {[%emt 0:02:59]} (36... Rd5 $142 37. Ra1 Rb5) 37. Ra1 {[%emt 0:00:43]} (37. Re4 $142) 37... Rd5 $1 {[%emt 0:00:34]} 38. Ra4 {[%emt 0:00:12]} Rb5 $1 {[%emt 0:00:42]} 39. h4 {[%emt 0:01:03]} (39. b3 $17 {is a better defense.}) 39... Ke7 $19 {[%emt 0:00:46]} (39... Rxb2 40. Rxa5 Rb4 41. Kf1 $17) 40. b3 {[%emt 0:00:52]} Kd6 {[%emt 0:01:38]} ({And not} 40... Rxb3 41. Rxa5 g6 42. h5 $17) 41. Kf1 {[%emt 0:31:29]} Kc6 {[%emt 0:30:29]} ({Inferior is} 41... Rxb3 42. Rxa5 Ke7 43. g4 $17) 42. Rg4 {[%emt 0:02:47]} (42. Rc4+ {is the only way for White.} Rc5 43. Rf4) 42... g6 {[%emt 0:00:45]} 43. Rf4 {[%emt 0:00:21]} f5 {[%emt 0:02:40]} (43... Rxb3 $2 {perishes.} 44. Rxf7 a4 45. Ke2 $19) 44. Rf3 {[%emt 0:01:04]} Rc5 {[%emt 0:03:12]} 45. Rd3 {[%emt 0:00:23]} Rb5 $2 {[%emt 0:03:53]} ({Black should try} 45... h5 $19 {Strongly threatening ...Kb5.} 46. Ke2 Kb5) 46. Kg2 $2 {[%emt 0:00:00][%mdl 8192]} (46. Rf3 $1 $11 {and White is okay.}) 46... Kc5 {[%emt 0:00:00]} 47. Re3 {[%emt 0:00:00]} Rb6 {[%emt 0:00:00]} 48. f4 $2 {[%emt 0:00:00]} (48. Kf3) 48... h5 $1 {[%emt 0:00:00]} 49. Kf2 {[%emt 0:00:00] [#]} Kb4 $1 {[%emt 0:00:00]} 50. Ke2 {[%emt 0:00:00] [#]} Rd6 {[%emt 0:00:00]} 51. Ke1 {[%emt 0:00:00]} Rd4 {[%emt 0:00:00]} 52. Rxe6 {[%emt 0:00:00]} Kxb3 {[%emt 0:00:00] ( -> ...Re4+)} 53. Rb6+ {[%emt 0:00:00]} Rb4 {[%emt 0:00:00]} 54. Rxg6 {[%emt 0:00:00]} a4 {[%emt 0:00:00][%cal Ba5a4,Ba4a3][%mdl 32] Black mates.} 55. Rd6 {[%emt 0:00:00]} a3 {[%emt 0:00:00]} 56. Rd3+ {[%emt 0:00:34]} Kb2 {[%emt 0:00:00]} 57. Rd2+ {[%emt 0:01:20]} Kc3 {[%emt 0:00:00]} 58. Ra2 {[%emt 0:02:34]} Rb1+ {[%emt 0:00:00] Weighted Error Value: White=0.54/Black=0.11 (very precise)} 0-1

[Event "CZE-ch U14 Open 2023"]
[Site "Teplice"]
[Date "2023.03.13"]
[Round "4.2"]
[White "Zelba, Lukas"]
[Black "Stary, Vojtech"]
[Result "1-0"]
[ECO "C00"]
[WhiteElo "1912"]
[BlackElo "1814"]
[Annotator "TA"]
[PlyCount "93"]
[EventDate "2023.03.09"]
[EventType "swiss"]
[EventCountry "CZE"]
[SourceTitle "playchess.com"]
[Source "ChessBase"]
[SourceQuality "1"]
[TimeControl "40/5400+30:1800+30"]

{[%evp 12,93,21,20,31,26,37,13,77,65,67,79,94,98,87,87,100,108,105,85,93,83,93,101,110,72,65,47,60,50,96,50,64,29,64,57,81,0,58,68,83,81,93,109,109,71,74,32,27,27,27,26,18,24,63,37,51,83,862,857,833,823,658,563,1925,1921,1754,1657,29985,29975,29984,29985,29985,29986,29986,29980,29992,29988,29988,29984,29982,29982,29982,776]} 1. d4 {[%emt 0:00:17]} e6 {[%emt 0:00:09]} 2. e4 {[%emt 0:01:33][%cal Be2e4,Be4e5][%mdl 32]} d5 {[%emt 0:00:08]} 3. Bd3 {[%emt 0:00:36]} Nf6 {[%emt 0:01:08]} 4. e5 {[%emt 0:00:18]} Nfd7 {[%emt 0:00:05]} 5. Nf3 {[%emt 0:06:53]} c5 {[%emt 0:01:23]} 6. c3 {[%emt 0:00:52]} Nc6 {[%emt 0:00:33]} 7. O-O {[%emt 0:04:26]} Be7 {[%emt 0:01:48] C02: French: Advance Variation.} 8. Be3 {[%emt 0:21:06]} Qb6 {[%emt 0:07:16]} 9. Qd2 {[%emt 0:06:22] [#]} cxd4 $146 {[%emt 0:07:40]} (9... c4 $11 {keeps the balance.} 10. Be2 O-O) ({Predecessor:} 9... c4 10. Be2 f6 11. exf6 Nxf6 12. Bxc4 dxc4 13. d5 Qa6 14. dxc6 Qxc6 15. Qe2 b5 {1-0 Barrero Garcia,C (2309)-Reis,L (2182) POR-chT Leiria 2017 (1.3)}) 10. cxd4 $16 {[%emt 0:00:07]} O-O {[%emt 0:02:19]} 11. Nc3 {[%emt 0:06:50]} Re8 {[%emt 0:06:29]} 12. a3 {[%emt 0:06:54]} Nf8 {[%emt 0:02:06]} 13. b4 {[%emt 0:00:39]} a6 {[%emt 0:01:59]} 14. Na4 {[%emt 0:03:35]} Qc7 {[%emt 0:03:01]} 15. Bg5 {[%emt 0:04:31]} b6 {[%emt 0:10:32]} 16. Rfc1 {[%emt 0:03:45]} Qb7 {[%emt 0:02:06]} 17. Bxe7 {[%emt 0:02:53]} Rxe7 {[%emt 0:00:36]} 18. Rc3 {[%emt 0:06:09] White is much more active.} Bd7 {[%emt 0:04:45][%cal Oc6e5]} 19. Qc2 {[%emt 0:02:45]} Rc8 {[%emt 0:01:56][%cal Oc6d4]} 20. Rc1 {[%emt 0:02:24]} Be8 {[%emt 0:03:38]} (20... Ree8 $14 {is more appropriate.}) 21. h3 {[%emt 0:08:01]} (21. h4 $16) 21... Rec7 $14 {[%emt 0:01:37]} 22. Qe2 {[%emt 0:01:27]} Ra8 {[%emt 0:02:34]} 23. Nb2 {[%emt 0:02:18]} b5 {[%emt 0:06:20]} 24. Rc5 {[%emt 0:03:07]} (24. Bb1 $16) 24... h6 {[%emt 0:01:54]} (24... Nd7 $1 $11) 25. Bb1 {[%emt 0:00:10]} Nd7 {[%emt 0:04:13] [#]} 26. Qc2 $1 {[%emt 0:01:48] Strongly threatening Qh7+.} Nxc5 {[%emt 0:00:50]} (26... Nf8 27. Nd3) 27. Qh7+ {[%emt 0:00:03]} Kf8 {[%emt 0:00:02][%cal Oc5e4] aiming for ...Ne4!} 28. Qh8+ {[%emt 0:00:18]} Ke7 {[%emt 0:00:02]} 29. dxc5 (29. bxc5 $5 {[%cal Rh8g7]} g6 30. Qxh6 $14) 29... g6 {[%emt 0:01:35]} 30. Qxh6 {[%emt 0:00:43]} a5 {[%emt 0:01:18]} 31. Nd3 $36 {[%emt 0:00:17][%cal Bb2d3,Bd3f4,Bf4e6,Be6d4][%mdl 2080] White has good play.} axb4 {[%emt 0:00:45]} 32. axb4 {[%emt 0:00:08]} Rcc8 {[%emt 0:07:38]} 33. Nf4 {[%emt 0:01:22] Black must now prevent Ng5. Dancing on a razor blade.} Kd8 $1 {[%emt 0:01:23]} 34. Bxg6 $1 {[%emt 0:00:50][%mdl 64] Deflection} fxg6 {[%emt 0:03:01][%mdl 8192] A mistake that costs the game.} (34... Qe7 $16 35. Bd3 Nxb4) 35. Nxe6+ $18 {[%emt 0:00:07]} Kd7 {[%emt 0:01:35]} 36. Qg7+ {[%emt 0:00:05]} Ne7 {[%emt 0:00:15]} 37. Nfd4 {[%emt 0:02:07] Intending c6+ and mate. A dynamic duo of knights.} Rc6 {[%emt 0:02:49]} 38. Nxc6 {[%emt 0:01:13]} Qxc6 {[%emt 0:00:50] Black is weak on the dark squares} 39. Nd4 {[%emt 0:00:09]} Qc7 {[%emt 0:04:13]} 40. Nxb5 {[%emt 0:01:12] White mates.} Qc6 {[%emt 0:00:25]} 41. Nd4 {[%emt 0:31:55]} Qc7 {[%emt 0:30:27]} 42. c6+ {[%emt 0:00:00]} Kc8 {[%emt 0:00:00]} 43. Nb5 {[%emt 0:00:00][%mdl 64] Deflection} Qb6 {[%emt 0:00:00]} 44. Nd6+ {[%emt 0:00:00]} Kd8 {[%emt 0:00:00]} 45. c7+ {[%emt 0:00:00]} Kd7 {[%emt 0:00:00]} 46. c8=Q+ {[%emt 0:00:00]} Rxc8 {[%emt 0:00:00] [#]} 47. Qxe7+ {[%emt 0:00:00] Ingenious play by Zelba!   Weighted Error Value: White=0.15 (very precise) /Black=0.33} 1-0

[Event "CZE-ch U14 Open 2023"]
[Site "Teplice"]
[Date "2023.03.13"]
[Round "4.3"]
[White "Hrbek, Jachym"]
[Black "Zrubek, Dan"]
[Result "1-0"]
[ECO "B52"]
[WhiteElo "1824"]
[BlackElo "1752"]
[Annotator "NA RC COMBH"]
[PlyCount "80"]
[EventDate "2023.03.09"]
[EventType "swiss"]
[EventCountry "CZE"]
[SourceTitle "playchess.com"]
[Source "ChessBase"]
[SourceQuality "1"]
[TimeControl "40/5400+30:1800+30"]

1. e4 {[%emt 0:00:11]} c5 {[%emt 0:00:05]} 2. Nf3 {[%emt 0:00:06]} d6 {[%emt 0:00:04]} 3. Bb5+ {[%emt 0:00:04]} Bd7 {[%emt 0:00:04]} 4. Bxd7+ {[%emt 0:00:04]} Qxd7 {[%emt 0:00:05]} 5. c4 {[%emt 0:00:05]} Nc6 {[%emt 0:00:38]} 6. Nc3 {[%emt 0:00:17]} Nf6 {[%emt 0:00:16]} 7. d4 {[%emt 0:00:08]} cxd4 {[%emt 0:00:38]} 8. Nxd4 {[%emt 0:00:16]} g6 {[%emt 0:00:33]} 9. f3 {[%emt 0:00:17]} Bg7 {[%emt 0:01:59]} 10. Be3 {[%emt 0:00:24]} O-O {[%emt 0:00:55]} 11. Rc1 {[%emt 0:02:19]} Rac8 {[%emt 0:03:21]} 12. b3 {[%emt 0:02:33]} Rfd8 {[%emt 0:02:12]} 13. O-O {[%emt 0:04:21]} Ne8 {[%emt 0:17:12]} 14. Qd2 {[%emt 0:05:54]} Nc7 {[%emt 0:06:22]} 15. Nxc6 {[%emt 0:04:23]} Qxc6 {[%emt 0:03:18]} 16. Nd5 {[%emt 0:05:08]} Nxd5 {[%emt 0:06:03]} 17. exd5 {[%emt 0:03:19]} Qc7 {[%emt 0:03:08]} 18. Rfe1 {[%emt 0:04:52]} Rd7 {[%emt 0:05:03]} 19. Qf2 {[%emt 0:06:22]} b6 {[%emt 0:02:28]} 20. Bf4 {[%emt 0:10:55]} Bf6 {[%emt 0:04:23]} 21. Re2 {[%emt 0:01:43]} Qb7 {[%emt 0:01:51]} 22. Be3 {[%emt 0:06:43]} Rdc7 {[%emt 0:07:35]} 23. a4 {[%emt 0:03:44]} Rb8 {[%emt 0:02:12]} 24. Bd4 {[%emt 0:02:41]} Bxd4 {[%emt 0:02:08]} 25. Qxd4 {[%emt 0:00:05]} a6 {[%emt 0:01:07]} 26. b4 {[%emt 0:06:16]} Rbc8 {[%emt 0:03:18]} 27. f4 {[%emt 0:02:36]} a5 {[%emt 0:02:27]} 28. b5 {[%emt 0:08:17]} Rc5 {[%emt 0:01:03]} 29. f5 {[%emt 0:03:10]} Rxd5 {[%emt 0:08:52]} 30. Qe4 {[%emt 0:01:36]} Rc7 {[%emt 0:01:21]} 31. cxd5 {[%emt 0:04:03]} Rxc1+ {[%emt 0:00:06]} 32. Kf2 {[%emt 0:00:04]} Rd1 {[%emt 0:03:54]} 33. f6 {[%emt 0:01:31]} exf6 {[%emt 0:03:48]} 34. Qe8+ {[%emt 0:00:14]} Kg7 {[%emt 0:00:05]} 35. Qc6 {[%emt 0:00:38]} Qa7 {[%emt 0:06:33]} 36. Qxd6 {[%emt 0:02:55]} Qb7 {[%emt 0:00:37]} 37. Re8 {[%emt 0:00:46]} Kh6 {[%emt 0:01:01]} 38. Qc6 {[%emt 0:00:59]} Qa7 {[%emt 0:00:34]} 39. d6 {[%emt 0:00:22]} Kg7 {[%emt 0:01:05]} 40. Qc7 Qa8 1-0